fUST/lending_fUST_20260605
["ID","MTS","AMOUNT","RATE_DAILY","PERIOD"]
[424129425,1780606242000,-500.0,0.00015348,2]
[424129421,1780606242000,-1659.57,0.00015348,2]
[424129420,1780606242000,-866.85,0.00015348,2]
[424129423,1780606242000,-511.86,0.00015348,2]
[424129418,1780606242000,-500.0,0.00015078,2]
[424129419,1780606242000,-408.99070336,0.00015252,2]
[424129417,1780606242000,-500.0,0.00015078,2]
[424129422,1780606242000,-500.0,0.00015348,2]
[424129429,1780606242000,-500.0,0.00015349,2]
[424129445,1780606242000,-500.0,0.0001535,2]
[424129432,1780606242000,-500.0,0.00015349,2]
[424129434,1780606242000,-500.0,0.00015349,2]
[424129437,1780606242000,-500.0,0.00015349,2]
[424129433,1780606242000,-500.0,0.00015349,2]
[424129435,1780606242000,-500.0,0.00015349,2]
[424129438,1780606242000,-500.0,0.00015349,2]
[424129436,1780606242000,-500.0,0.00015349,2]
[424129441,1780606242000,-500.0,0.00015349,2]
[424129440,1780606242000,-500.0,0.00015349,2]
[424129439,1780606242000,-500.0,0.00015349,2]
[424129443,1780606242000,-500.0,0.00015349,2]
[424129442,1780606242000,-500.0,0.00015349,2]
[424129416,1780606242000,-1051.46,0.00015078,2]
[424129430,1780606242000,-500.0,0.00015349,2]
[424129415,1780606242000,-500.0,0.00015078,2]
[424129401,1780606242000,-500.0,0.00015078,2]
[424129413,1780606242000,-1164.47,0.00015078,2]
[424129393,1780606242000,-503.69060103,0.00015078,2]
[424129392,1780606242000,-500.0,0.00015078,2]
[424129386,1780606242000,-500.0,0.00015078,2]
[424129387,1780606242000,-832.53,0.00015078,2]
[424129390,1780606242000,-500.0,0.00015078,2]
[424129389,1780606242000,-500.0,0.00015078,2]
[424129388,1780606242000,-500.0,0.00015078,2]
[424129394,1780606242000,-500.0,0.00015078,2]
[424129391,1780606242000,-500.0,0.00015078,2]
[424129395,1780606242000,-500.0,0.00015078,2]
[424129396,1780606242000,-500.0,0.00015078,2]
[424129397,1780606242000,-500.0,0.00015078,2]
[424129398,1780606242000,-500.0,0.00015078,2]
[424129400,1780606242000,-500.0,0.00015078,2]
[424129399,1780606242000,-500.0,0.00015078,2]
[424129453,1780606242000,-500.0,0.0001535,2]
[424129402,1780606242000,-500.0,0.00015078,2]
[424129403,1780606242000,-500.0,0.00015078,2]
[424129404,1780606242000,-500.0,0.00015078,2]
[424129405,1780606242000,-507.07663632,0.00015078,2]
[424129408,1780606242000,-3143.61,0.00015078,2]
[424129407,1780606242000,-500.0,0.00015078,2]
[424129406,1780606242000,-500.0,0.00015078,2]
[424129410,1780606242000,-500.0,0.00015078,2]
[424129409,1780606242000,-600.85,0.00015078,2]
[424129411,1780606242000,-500.0,0.00015078,2]
[424129412,1780606242000,-500.0,0.00015078,2]
[424129414,1780606242000,-500.0,0.00015078,2]
[424129451,1780606242000,-2068.89,0.0001535,2]
[424129427,1780606242000,-500.0,0.00015349,2]
[424129452,1780606242000,-500.0,0.0001535,2]
[424129482,1780606242000,-602.21115187,0.00015351,2]
[424129487,1780606242000,-500.0,0.00015351,2]
[424129489,1780606242000,-500.0,0.00015351,2]
[424129492,1780606242000,-2548.79,0.00015351,2]
[424129491,1780606242000,-500.0,0.00015351,2]
[424129490,1780606242000,-500.0,0.00015351,2]
[424129488,1780606242000,-500.0,0.00015351,2]
[424129481,1780606242000,-500.0,0.00015351,2]
[424129486,1780606242000,-500.0,0.00015351,2]
[424129484,1780606242000,-500.0,0.00015351,2]
[424129483,1780606242000,-500.0,0.00015351,2]
[424129485,1780606242000,-17646.95,0.00015351,2]
[424129494,1780606242000,-500.0,0.00015351,2]
[424129476,1780606242000,-500.0,0.00015351,2]
[424129495,1780606242000,-500.0,0.00015352,2]
[424129496,1780606242000,-500.0,0.00015352,2]
[424129498,1780606242000,-500.0,0.00015352,2]
[424129502,1780606242000,-500.0,0.00015352,2]
[424129499,1780606242000,-500.0,0.00015352,2]
[424129506,1780606242000,-500.0,0.00015352,2]
[424129501,1780606242000,-500.0,0.00015352,2]
[424129500,1780606242000,-500.0,0.00015352,2]
[424129505,1780606242000,-500.0,0.00015352,2]
[424129508,1780606242000,-500.0,0.00015352,2]
[424129507,1780606242000,-500.0,0.00015352,2]
[424129504,1780606242000,-500.0,0.00015352,2]
[424129444,1780606242000,-500.0,0.00015349,2]
[424129503,1780606242000,-500.0,0.00015352,2]
[424129497,1780606242000,-500.0,0.00015352,2]
[424129468,1780606242000,-500.0,0.00015351,2]
[424129493,1780606242000,-529.26,0.00015351,2]
[424129472,1780606242000,-500.0,0.00015351,2]
[424129446,1780606242000,-615.98,0.0001535,2]
[424129477,1780606242000,-500.0,0.00015351,2]
[424129450,1780606242000,-1194.0,0.0001535,2]
[424129448,1780606242000,-2275.6,0.0001535,2]
[424129447,1780606242000,-500.0,0.0001535,2]
[424129457,1780606242000,-1621.65,0.0001535,2]
[424129454,1780606242000,-500.0,0.0001535,2]
[424129456,1780606242000,-500.0,0.0001535,2]
[424129464,1780606242000,-1925.42,0.0001535,2]
[424129461,1780606242000,-500.0,0.0001535,2]
[424129460,1780606242000,-1066.57,0.0001535,2]
[424129458,1780606242000,-500.0,0.0001535,2]
[424129463,1780606242000,-655.22,0.0001535,2]
[424129462,1780606242000,-996.63,0.0001535,2]
[424129455,1780606242000,-1456.66,0.0001535,2]
[424129449,1780606242000,-517.3,0.0001535,2]
[424129473,1780606242000,-500.0,0.00015351,2]
[424129459,1780606242000,-500.0,0.0001535,2]
[424129465,1780606242000,-500.0,0.00015351,2]
[424129466,1780606242000,-500.0,0.00015351,2]
[424129467,1780606242000,-500.0,0.00015351,2]
[424129469,1780606242000,-577.59,0.00015351,2]
[424129479,1780606242000,-500.0,0.00015351,2]
[424129478,1780606242000,-500.0,0.00015351,2]
[424129475,1780606242000,-500.0,0.00015351,2]
[424129470,1780606242000,-957.06,0.00015351,2]
[424129474,1780606242000,-500.0,0.00015351,2]
[424129471,1780606242000,-500.0,0.00015351,2]
[424129480,1780606242000,-625.0,0.00015351,2]
[424129558,1780606243000,-600.85,0.00015352,2]
[424129573,1780606243000,-749.98,0.00015622,2]
[424129561,1780606243000,-500.0,0.00015352,2]
[424129559,1780606243000,-500.0,0.00015352,2]
[424129553,1780606243000,-500.0,0.00015352,2]
[424129537,1780606243000,-832.53,0.00015352,2]
[424129554,1780606243000,-500.0,0.00015352,2]
[424129541,1780606243000,-500.0,0.00015352,2]
[424129542,1780606243000,-500.0,0.00015352,2]
[424129517,1780606243000,-500.0,0.00015352,2]
[424129555,1780606243000,-500.0,0.00015352,2]
[424129544,1780606243000,-500.0,0.00015352,2]
[424129552,1780606243000,-500.0,0.00015352,2]
[424129556,1780606243000,-3143.61,0.00015352,2]
[424129566,1780606243000,-600.0,0.00015379,2]
[424129565,1780606243000,-500.0,0.00015352,2]
[424129563,1780606243000,-1051.46,0.00015352,2]
[424129560,1780606243000,-1164.47,0.00015352,2]
[424129564,1780606243000,-500.0,0.00015352,2]
[424129567,1780606243000,-408.99070336,0.00015526,2]
[424129570,1780606243000,-1659.57,0.00015622,2]
[424129569,1780606243000,-866.85,0.00015622,2]
[424129571,1780606243000,-604.08,0.00015622,2]
[424129568,1780606243000,-912.385138,0.00015541,2]
[424129572,1780606243000,-511.86,0.00015622,2]
[424129575,1780606243000,-500.0,0.00015622,2]
[424129577,1780606243000,-500.0,0.00015622,2]
[424129540,1780606243000,-500.0,0.00015352,2]
[424129562,1780606243000,-500.0,0.00015352,2]
[424129543,1780606243000,-392.86963807,0.00015352,2]
[424129518,1780606243000,-500.0,0.00015352,2]
[424129549,1780606243000,-579.11,0.00015352,2]
[424129587,1780606243000,-500.0,0.00015623,2]
[424129519,1780606243000,-500.0,0.00015352,2]
[424129509,1780606243000,-500.0,0.00015352,2]
[424129511,1780606243000,-500.0,0.00015352,2]
[424129520,1780606243000,-500.0,0.00015352,2]
[424129521,1780606243000,-500.0,0.00015352,2]
[424129514,1780606243000,-500.0,0.00015352,2]
[424129510,1780606243000,-500.0,0.00015352,2]
[424129512,1780606243000,-500.0,0.00015352,2]
[424129513,1780606243000,-431.89249027,0.00015352,2]
[424129515,1780606243000,-500.0,0.00015352,2]
[424129516,1780606243000,-585.21612089,0.00015352,2]
[424129522,1780606243000,-500.0,0.00015352,2]
[424129538,1780606243000,-500.0,0.00015352,2]
[424129527,1780606243000,-500.0,0.00015352,2]
[424129533,1780606243000,-500.0,0.00015352,2]
[424129523,1780606243000,-758.34,0.00015352,2]
[424129531,1780606243000,-389.42107218,0.00015352,2]
[424129529,1780606243000,-500.0,0.00015352,2]
[424129530,1780606243000,-110.57892782,0.00015352,2]
[424129532,1780606243000,-500.0,0.00015352,2]
[424129546,1780606243000,-500.0,0.00015352,2]
[424129535,1780606243000,-579.72,0.00015352,2]
[424129548,1780606243000,-500.0,0.00015352,2]
[424129545,1780606243000,-500.0,0.00015352,2]
[424129547,1780606243000,-500.0,0.00015352,2]
[424129551,1780606243000,-500.0,0.00015352,2]
[424129550,1780606243000,-500.0,0.00015352,2]
[424129525,1780606243000,-500.0,0.00015352,2]
[424129579,1780606243000,-500.0,0.00015623,2]
[424129609,1780606243000,-1621.65,0.00015624,2]
[424129578,1780606243000,-500.0,0.00015623,2]
[424129613,1780606243000,-996.63,0.00015624,2]
[424129612,1780606243000,-500.0,0.00015624,2]
[424129621,1780606243000,-500.0,0.00015625,2]
[424129630,1780606243000,-625.0,0.00015625,2]
[424129622,1780606243000,-500.0,0.00015625,2]
[424129623,1780606243000,-500.0,0.00015625,2]
[424129632,1780606243000,-500.0,0.00015625,2]
[424129620,1780606243000,-957.06,0.00015625,2]
[424129629,1780606243000,-500.0,0.00015625,2]
[424129624,1780606243000,-500.0,0.00015625,2]
[424129631,1780606243000,-500.0,0.00015625,2]
[424129626,1780606243000,-500.0,0.00015625,2]
[424129625,1780606243000,-500.0,0.00015625,2]
[424129614,1780606243000,-655.22,0.00015624,2]
[424129628,1780606243000,-500.0,0.00015625,2]
[424129635,1780606243000,-500.0,0.00015625,2]
[424129645,1780606243000,-500.0,0.00015626,2]
[424129637,1780606243000,-500.0,0.00015625,2]
[424129636,1780606243000,-500.0,0.00015625,2]
[424129634,1780606243000,-17646.95,0.00015625,2]
[424129640,1780606243000,-500.0,0.00015625,2]
[424129641,1780606243000,-2548.79,0.00015625,2]
[424129639,1780606243000,-500.0,0.00015625,2]
[424129642,1780606243000,-529.26,0.00015625,2]
[424129638,1780606243000,-500.0,0.00015625,2]
[424129643,1780606243000,-500.0,0.00015625,2]
[424129644,1780606243000,-500.0,0.00015626,2]
[424129588,1780606243000,-500.0,0.00015623,2]
[424129627,1780606243000,-500.0,0.00015625,2]
[424129610,1780606243000,-500.0,0.00015624,2]
[424129633,1780606243000,-500.0,0.00015625,2]
[424129619,1780606243000,-577.59,0.00015625,2]
[424129580,1780606243000,-500.0,0.00015623,2]
[424129611,1780606243000,-500.0,0.00015624,2]
[424129589,1780606243000,-500.0,0.00015623,2]
[424129591,1780606243000,-500.0,0.00015623,2]
[424129581,1780606243000,-500.0,0.00015623,2]
[424129584,1780606243000,-500.0,0.00015623,2]
[424129583,1780606243000,-500.0,0.00015623,2]
[424129585,1780606243000,-500.0,0.00015623,2]
[424129586,1780606243000,-500.0,0.00015623,2]
[424129595,1780606243000,-484.20536598,0.00015623,2]
[424129592,1780606243000,-500.0,0.00015623,2]
[424129596,1780606243000,-500.0,0.00015624,2]
[424129594,1780606243000,-500.0,0.00015623,2]
[424129597,1780606243000,-615.98,0.00015624,2]
[424129582,1780606243000,-500.0,0.00015623,2]
[424129600,1780606243000,-2275.6,0.00015624,2]
[424129605,1780606243000,-567.68,0.00015624,2]
[424129608,1780606243000,-500.0,0.00015624,2]
[424129617,1780606243000,-500.0,0.00015625,2]
[424129618,1780606243000,-500.0,0.00015625,2]
[424129615,1780606243000,-1925.42,0.00015624,2]
[424129606,1780606243000,-500.0,0.00015624,2]
[424129616,1780606243000,-500.0,0.00015625,2]
[424129603,1780606243000,-2068.89,0.00015624,2]
[424129601,1780606243000,-517.3,0.00015624,2]
[424129602,1780606243000,-1194.0,0.00015624,2]
[424129599,1780606243000,-500.0,0.00015624,2]
[424129604,1780606243000,-500.0,0.00015624,2]
[424129593,1780606243000,-500.0,0.00015623,2]
[424129607,1780606243000,-1456.66,0.00015624,2]
[424129702,1780606244000,-420.0,0.00015695,2]
[424129705,1780606244000,-151.5,0.00015858,2]
[424129703,1780606244000,-408.99070336,0.000158,2]
[424129709,1780606244000,-1659.57,0.00015896,2]
[424129710,1780606244000,-511.86,0.00015896,2]
[424129707,1780606244000,-157.46656873,0.00015858,2]
[424129708,1780606244000,-866.85,0.00015896,2]
[424129704,1780606244000,-151.07,0.000158,2]
[424129718,1780606244000,-500.0,0.00015897,2]
[424129712,1780606244000,-500.0,0.00015896,2]
[424129723,1780606244000,-586.89,0.00015897,2]
[424129711,1780606244000,-749.98,0.00015896,2]
[424129715,1780606244000,-500.0,0.00015897,2]
[424129713,1780606244000,-500.0,0.00015897,2]
[424129717,1780606244000,-500.0,0.00015897,2]
[424129724,1780606244000,-500.0,0.00015897,2]
[424129716,1780606244000,-347.83,0.00015897,2]
[424129722,1780606244000,-500.0,0.00015897,2]
[424129700,1780606244000,-500.0,0.00015626,2]
[424129706,1780606244000,-151.5,0.00015858,2]
[424129701,1780606244000,-420.0,0.00015695,2]
[424129688,1780606244000,-500.0,0.00015626,2]
[424129694,1780606244000,-3143.61,0.00015626,2]
[424129681,1780606244000,-500.0,0.00015626,2]
[424129678,1780606244000,-500.0,0.00015626,2]
[424129679,1780606244000,-500.0,0.00015626,2]
[424129680,1780606244000,-500.0,0.00015626,2]
[424129676,1780606244000,-192.03,0.00015626,2]
[424129685,1780606244000,-500.0,0.00015626,2]
[424129687,1780606244000,-500.0,0.00015626,2]
[424129682,1780606244000,-500.0,0.00015626,2]
[424129686,1780606244000,-500.0,0.00015626,2]
[424129721,1780606244000,-500.0,0.00015897,2]
[424129683,1780606244000,-608.76,0.00015626,2]
[424129684,1780606244000,-500.0,0.00015626,2]
[424129690,1780606244000,-614.602364,0.00015626,2]
[424129696,1780606244000,-500.0,0.00015626,2]
[424129698,1780606244000,-500.0,0.00015626,2]
[424129697,1780606244000,-1164.47,0.00015626,2]
[424129689,1780606244000,-614.602364,0.00015626,2]
[424129693,1780606244000,-500.0,0.00015626,2]
[424129691,1780606244000,-614.602364,0.00015626,2]
[424129692,1780606244000,-614.602364,0.00015626,2]
[424129695,1780606244000,-600.85,0.00015626,2]
[424129699,1780606244000,-1051.46,0.00015626,2]
[424129719,1780606244000,-500.0,0.00015897,2]
[424129731,1780606244000,-517.3,0.00015898,2]
[424129714,1780606244000,-219.51567831,0.00015897,2]
[424129747,1780606244000,-500.0,0.00015899,2]
[424129745,1780606244000,-216.27,0.00015899,2]
[424129743,1780606244000,-655.22,0.00015898,2]
[424129756,1780606244000,-625.0,0.00015899,2]
[424129757,1780606244000,-500.0,0.00015899,2]
[424129755,1780606244000,-500.0,0.00015899,2]
[424129763,1780606244000,-500.0,0.00015899,2]
[424129760,1780606244000,-500.0,0.00015899,2]
[424129764,1780606244000,-17646.95,0.00015899,2]
[424129744,1780606244000,-1925.42,0.00015898,2]
[424129754,1780606244000,-217.0,0.00015899,2]
[424129758,1780606244000,-778.760388,0.00015899,2]
[424129759,1780606244000,-778.760388,0.00015899,2]
[424129762,1780606244000,-778.760388,0.00015899,2]
[424129766,1780606244000,-500.0,0.00015899,2]
[424129765,1780606244000,-500.0,0.00015899,2]
[424129769,1780606244000,-500.0,0.00015899,2]
[424129768,1780606244000,-500.0,0.00015899,2]
[424129767,1780606244000,-500.0,0.00015899,2]
[424129677,1780606244000,-207.6734297,0.00015626,2]
[424129761,1780606244000,-778.760388,0.00015899,2]
[424129720,1780606244000,-500.0,0.00015897,2]
[424129746,1780606244000,-500.0,0.00015899,2]
[424129739,1780606244000,-500.0,0.00015898,2]
[424129725,1780606244000,-500.0,0.00015897,2]
[424129727,1780606244000,-500.0,0.00015898,2]
[424129726,1780606244000,-500.0,0.00015897,2]
[424129729,1780606244000,-500.0,0.00015898,2]
[424129730,1780606244000,-2275.6,0.00015898,2]
[424129738,1780606244000,-1621.65,0.00015898,2]
[424129734,1780606244000,-500.0,0.00015898,2]
[424129733,1780606244000,-2068.89,0.00015898,2]
[424129737,1780606244000,-500.0,0.00015898,2]
[424129741,1780606244000,-500.0,0.00015898,2]
[424129736,1780606244000,-1456.66,0.00015898,2]
[424129728,1780606244000,-615.98,0.00015898,2]
[424129735,1780606244000,-500.0,0.00015898,2]
[424129740,1780606244000,-500.0,0.00015898,2]
[424129748,1780606244000,-577.59,0.00015899,2]
[424129750,1780606244000,-500.0,0.00015899,2]
[424129751,1780606244000,-500.0,0.00015899,2]
[424129752,1780606244000,-500.0,0.00015899,2]
[424129749,1780606244000,-957.06,0.00015899,2]
[424129742,1780606244000,-996.63,0.00015898,2]
[424129732,1780606244000,-1194.0,0.00015898,2]
[424129753,1780606244000,-500.0,0.00015899,2]
[424129675,1780606244000,-500.0,0.00015626,2]
[424129667,1780606244000,-500.0,0.00015626,2]
[424129671,1780606244000,-500.0,0.00015626,2]
[424129647,1780606244000,-500.0,0.00015626,2]
[424129648,1780606244000,-500.0,0.00015626,2]
[424129652,1780606244000,-500.0,0.00015626,2]
[424129651,1780606244000,-500.0,0.00015626,2]
[424129650,1780606244000,-500.0,0.00015626,2]
[424129653,1780606244000,-500.0,0.00015626,2]
[424129654,1780606244000,-500.0,0.00015626,2]
[424129655,1780606244000,-500.0,0.00015626,2]
[424129649,1780606244000,-500.0,0.00015626,2]
[424129658,1780606244000,-500.0,0.00015626,2]
[424129659,1780606244000,-500.0,0.00015626,2]
[424129656,1780606244000,-500.0,0.00015626,2]
[424129646,1780606244000,-500.0,0.00015626,2]
[424129657,1780606244000,-500.0,0.00015626,2]
[424129668,1780606244000,-500.0,0.00015626,2]
[424129670,1780606244000,-500.0,0.00015626,2]
[424129666,1780606244000,-758.34,0.00015626,2]
[424129669,1780606244000,-500.0,0.00015626,2]
[424129661,1780606244000,-500.0,0.00015626,2]
[424129665,1780606244000,-500.0,0.00015626,2]
[424129663,1780606244000,-500.0,0.00015626,2]
[424129664,1780606244000,-500.0,0.00015626,2]
[424129672,1780606244000,-423.47863348,0.00015626,2]
[424129674,1780606244000,-832.53,0.00015626,2]
[424129662,1780606244000,-500.0,0.00015626,2]
[424129673,1780606244000,-579.72,0.00015626,2]
[424129660,1780606244000,-500.0,0.00015626,2]
[424129803,1780606245000,-500.0,0.000159,2]
[424129806,1780606245000,-4736.28057805,0.00016108,2]
[424129810,1780606245000,-161.4714167,0.00016132,2]
[424129805,1780606245000,-1051.46,0.000159,2]
[424129796,1780606245000,-500.0,0.000159,2]
[424129799,1780606245000,-500.0,0.000159,2]
[424129804,1780606245000,-1164.47,0.000159,2]
[424129798,1780606245000,-500.0,0.000159,2]
[424129800,1780606245000,-500.0,0.000159,2]
[424129809,1780606245000,-151.0132233,0.00016132,2]
[424129801,1780606245000,-3143.61,0.000159,2]
[424129808,1780606245000,-164.68988103,0.00016132,2]
[424129816,1780606245000,-1659.57,0.0001617,2]
[424129811,1780606245000,-158.49274739,0.00016132,2]
[424129812,1780606245000,-912.385138,0.00016145,2]
[424129813,1780606245000,-160.34356223,0.00016157,2]
[424129817,1780606245000,-511.86,0.0001617,2]
[424129815,1780606245000,-866.85,0.0001617,2]
[424129819,1780606245000,-500.0,0.0001617,2]
[424129829,1780606245000,-2275.6,0.00016172,2]
[424129830,1780606245000,-517.3,0.00016172,2]
[424129831,1780606245000,-1194.0,0.00016172,2]
[424129818,1780606245000,-749.98,0.0001617,2]
[424129797,1780606245000,-500.0,0.000159,2]
[424129814,1780606245000,-173.9750881,0.00016157,2]
[424129795,1780606245000,-500.0,0.000159,2]
[424129784,1780606245000,-500.0,0.000159,2]
[424129802,1780606245000,-600.85,0.000159,2]
[424129770,1780606245000,-500.0,0.00015899,2]
[424129771,1780606245000,-2548.79,0.00015899,2]
[424129773,1780606245000,-500.0,0.00015899,2]
[424129772,1780606245000,-529.26,0.00015899,2]
[424129774,1780606245000,-964.13,0.00015899,2]
[424129777,1780606245000,-500.0,0.000159,2]
[424129775,1780606245000,-500.0,0.000159,2]
[424129776,1780606245000,-500.0,0.000159,2]
[424129778,1780606245000,-500.0,0.000159,2]
[424129780,1780606245000,-500.0,0.000159,2]
[424129781,1780606245000,-500.0,0.000159,2]
[424129794,1780606245000,-500.0,0.000159,2]
[424129782,1780606245000,-500.0,0.000159,2]
[424129779,1780606245000,-500.0,0.000159,2]
[424129783,1780606245000,-500.0,0.000159,2]
[424129786,1780606245000,-500.0,0.000159,2]
[424129788,1780606245000,-500.0,0.000159,2]
[424129785,1780606245000,-500.0,0.000159,2]
[424129791,1780606245000,-579.72,0.000159,2]
[424129787,1780606245000,-758.34,0.000159,2]
[424129790,1780606245000,-500.0,0.000159,2]
[424129792,1780606245000,-832.53,0.000159,2]
[424129789,1780606245000,-500.0,0.000159,2]
[424129793,1780606245000,-500.0,0.000159,2]
[424129825,1780606245000,-500.0,0.00016171,2]
[424129821,1780606245000,-500.0,0.00016171,2]
[424129807,1780606245000,-203.76013962,0.00016132,2]
[424129823,1780606245000,-500.0,0.00016171,2]
[424129854,1780606245000,-500.0,0.00016173,2]
[424129851,1780606245000,-500.0,0.00016173,2]
[424129852,1780606245000,-456.15,0.00016173,2]
[424129860,1780606245000,-500.0,0.00016174,2]
[424129870,1780606245000,-500.0,0.00016174,2]
[424129871,1780606245000,-500.0,0.00016174,2]
[424129859,1780606245000,-500.0,0.00016173,2]
[424129862,1780606245000,-500.0,0.00016174,2]
[424129863,1780606245000,-500.0,0.00016174,2]
[424129864,1780606245000,-500.0,0.00016174,2]
[424129861,1780606245000,-500.0,0.00016174,2]
[424129865,1780606245000,-500.0,0.00016174,2]
[424129869,1780606245000,-758.34,0.00016174,2]
[424129867,1780606245000,-281.6,0.00016174,2]
[424129866,1780606245000,-289.48,0.00016174,2]
[424129872,1780606245000,-579.72,0.00016174,2]
[424129873,1780606245000,-832.53,0.00016174,2]
[424129876,1780606245000,-500.0,0.00016174,2]
[424129875,1780606245000,-500.0,0.00016174,2]
[424129874,1780606245000,-500.0,0.00016174,2]
[424129877,1780606245000,-500.0,0.00016174,2]
[424129879,1780606245000,-3143.61,0.00016174,2]
[424129880,1780606245000,-600.85,0.00016174,2]
[424129878,1780606245000,-500.0,0.00016174,2]
[424129822,1780606245000,-500.0,0.00016171,2]
[424129849,1780606245000,-500.0,0.00016173,2]
[424129853,1780606245000,-17646.95,0.00016173,2]
[424129868,1780606245000,-500.0,0.00016174,2]
[424129846,1780606245000,-500.0,0.00016173,2]
[424129820,1780606245000,-500.0,0.00016171,2]
[424129850,1780606245000,-625.0,0.00016173,2]
[424129824,1780606245000,-500.0,0.00016171,2]
[424129828,1780606245000,-282.96,0.00016172,2]
[424129827,1780606245000,-615.98,0.00016172,2]
[424129826,1780606245000,-500.0,0.00016172,2]
[424129832,1780606245000,-2068.89,0.00016172,2]
[424129834,1780606245000,-500.0,0.00016172,2]
[424129836,1780606245000,-500.0,0.00016172,2]
[424129843,1780606245000,-500.0,0.00016173,2]
[424129844,1780606245000,-577.59,0.00016173,2]
[424129835,1780606245000,-1621.65,0.00016172,2]
[424129837,1780606245000,-500.0,0.00016172,2]
[424129833,1780606245000,-1456.66,0.00016172,2]
[424129840,1780606245000,-655.22,0.00016172,2]
[424129857,1780606245000,-2548.79,0.00016173,2]
[424129848,1780606245000,-500.0,0.00016173,2]
[424129847,1780606245000,-500.0,0.00016173,2]
[424129858,1780606245000,-529.26,0.00016173,2]
[424129856,1780606245000,-500.0,0.00016173,2]
[424129845,1780606245000,-957.06,0.00016173,2]
[424129855,1780606245000,-500.0,0.00016173,2]
[424129842,1780606245000,-500.0,0.00016173,2]
[424129838,1780606245000,-500.0,0.00016172,2]
[424129839,1780606245000,-996.63,0.00016172,2]
[424129841,1780606245000,-1925.42,0.00016172,2]
[424129917,1780606246000,-500.0,0.00016445,2]
[424129923,1780606246000,-2068.89,0.00016446,2]
[424129927,1780606246000,-500.0,0.00016446,2]
[424129921,1780606246000,-517.3,0.00016446,2]
[424129924,1780606246000,-1456.66,0.00016446,2]
[424129922,1780606246000,-1194.0,0.00016446,2]
[424129913,1780606246000,-749.98,0.00016444,2]
[424129920,1780606246000,-2275.6,0.00016446,2]
[424129918,1780606246000,-200.6,0.00016446,2]
[424129925,1780606246000,-500.0,0.00016446,2]
[424129937,1780606246000,-500.0,0.00016447,2]
[424129916,1780606246000,-500.0,0.00016445,2]
[424129919,1780606246000,-615.98,0.00016446,2]
[424129939,1780606246000,-151.0,0.00016447,2]
[424129942,1780606246000,-500.0,0.00016447,2]
[424129935,1780606246000,-577.59,0.00016447,2]
[424129926,1780606246000,-1621.65,0.00016446,2]
[424129932,1780606246000,-1925.42,0.00016446,2]
[424129929,1780606246000,-500.0,0.00016446,2]
[424129928,1780606246000,-500.0,0.00016446,2]